bitfinex-derivatives/quotes_BTCF0:USTF0_20260214
["timestamp","ask_amount","ask_price","bid_price","bid_amount"]
[1771074568680,0.01820829,69656.0,69651.0,0.014365]
[1771074569070,0.014363,69658.0,69647.0,0.01464]
[1771074569071,0.01464,69655.0,69653.0,0.014364]
[1771074569275,0.01464,69654.0,69652.0,0.014364]
[1771074569882,0.01464,69654.0,69650.0,0.014365]
[1771074570276,0.029004,69654.0,69650.0,0.014365]
[1771074571684,0.014364,69653.0,69648.0,0.014365]
[1771074571877,0.028728,69653.0,69648.0,0.014365]
[1771074572178,0.014364,69653.0,69648.0,0.014365]
[1771074572372,0.028728,69653.0,69648.0,0.014365]
[1771074572683,0.014364,69653.0,69648.0,0.014365]
[1771074572884,0.014364,69653.0,69648.0,0.02873]
[1771074573081,0.014364,69653.0,69648.0,0.014365]
[1771074573470,0.014364,69653.0,69649.0,0.014365]
[1771074574584,0.029004,69654.0,69650.0,0.014365]
[1771074574771,0.014363,69659.0,69650.0,0.014365]
[1771074574977,0.014363,69659.0,69655.0,0.014364]
[1771074575383,0.14368,69660.0,69650.0,0.31533832]
[1771074575589,0.14368,69660.0,69657.0,0.014363]
[1771074575887,0.14368,69660.0,69656.0,0.014364]
[1771074576178,0.14368,69660.0,69657.0,0.014363]
[1771074576484,0.14368,69664.0,69660.0,0.014363]
[1771074576874,0.14368,69664.0,69659.0,0.014363]
[1771074577077,0.14368,69664.0,69660.0,0.014363]
[1771074577382,0.01464,69663.0,69659.0,0.014363]
[1771074577578,0.0038443,69663.0,69659.0,0.014363]
[1771074577887,0.01464,69672.0,69669.0,0.014361]
[1771074578090,0.14368,69678.0,69675.0,0.01436]
[1771074578277,0.01464,69677.0,69673.0,0.01436]
[1771074578773,0.158039,69678.0,69667.0,0.31561332]
[1771074578774,0.14368,69678.0,69676.0,0.01436]
[1771074578978,0.14368,69678.0,69675.0,0.01436]
[1771074579180,0.014359,69681.0,69676.0,0.028726]
[1771074579385,0.01464,69680.0,69673.0,0.043086]
[1771074579585,0.028999,69680.0,69675.0,0.01436]
[1771074580079,0.043358,69680.0,69676.0,0.028726]
[1771074580590,0.014359,69679.0,69673.0,0.01436]
[1771074580880,0.014359,69679.0,69674.0,0.01436]
[1771074581082,0.01436,69677.0,69672.0,0.01464]
[1771074581485,0.01436,69676.0,69672.0,0.01464]
[1771074581787,0.014359,69678.0,69673.0,0.01436]
[1771074582186,0.014358,69682.0,69677.0,0.028718]
[1771074582383,0.028958,69682.0,69678.0,0.014359]
[1771074582891,0.014358,69685.0,69677.0,0.30831912]
[1771074583190,0.172638,69686.0,69681.0,0.014358]
[1771074583891,0.15828,69686.0,69682.0,0.014358]
[1771074584184,0.15828,69686.0,69681.0,0.028716]
[1771074584390,0.172638,69686.0,69680.0,0.014359]
[1771074584689,0.15828,69686.0,69681.0,0.014359]
[1771074584987,0.15828,69686.0,69679.0,0.014359]
[1771074584988,0.014358,69685.0,69679.0,0.014359]
[1771074585186,0.158038,69686.0,69680.0,0.028959]
[1771074585585,0.14368,69686.0,69682.0,0.014358]
[1771074585891,0.3288807,69695.0,69689.0,0.028714]
[1771074585892,0.0146,69692.0,69689.0,0.028714]
[1771074586085,0.0146,69692.0,69687.0,0.014357]
[1771074586386,0.0146,69692.0,69688.0,0.014357]
[1771074586590,0.0146,69692.0,69690.0,0.014356]
[1771074586789,0.0146,69692.0,69691.0,0.014356]
[1771074587092,0.02940228,69695.0,69691.0,0.014356]
[1771074587287,0.0146,69694.0,69691.0,0.014356]
[1771074587494,0.014355,69700.0,69694.0,0.014356]
[1771074587792,0.28512242,69702.0,69691.0,0.0146]
[1771074588088,0.014356,69694.0,69688.0,0.028957]
[1771074588587,0.028956,69696.0,69689.0,0.014357]
[1771074588786,0.028956,69696.0,69690.0,0.014357]
[1771074589192,0.0181603,69696.0,69690.0,0.014357]
[1771074589884,0.0038043,69696.0,69692.0,0.014356]
[1771074590084,0.0038043,69696.0,69693.0,0.014356]
[1771074590284,0.0038043,69696.0,69692.0,0.014356]
[1771074592390,0.0038043,69696.0,69692.0,0.028712]
[1771074592590,0.0038043,69696.0,69694.0,0.014356]
[1771074592791,0.0146,69700.0,69691.0,0.29371912]
[1771074593094,0.0146,69700.0,69696.0,0.014355]
[1771074593297,0.0146,69700.0,69698.0,0.014355]
[1771074593493,0.014354,69703.0,69697.0,0.014355]
[1771074593696,0.014354,69702.0,69697.0,0.014355]
[1771074593992,0.014354,69701.0,69696.0,0.014355]
[1771074594790,0.028954,69704.0,69699.0,0.014355]
[1771074594991,0.028954,69704.0,69698.0,0.014355]
[1771074595195,0.0146,69704.0,69697.0,0.014355]
[1771074595598,0.014355,69700.0,69695.0,0.028956]
[1771074595798,0.014354,69702.0,69695.0,0.028955]
[1771074596191,0.014354,69702.0,69696.0,0.014355]
[1771074596700,0.014354,69702.0,69697.0,0.014355]
[1771074596899,0.014354,69702.0,69696.0,0.014355]
[1771074597292,0.014354,69702.0,69697.0,0.014355]
[1771074597493,0.043308,69704.0,69697.0,0.02871]
[1771074597695,0.014354,69702.0,69696.0,0.014355]
[1771074598098,0.014354,69703.0,69697.0,0.014355]
[1771074598300,0.014354,69703.0,69698.0,0.014355]
[1771074599305,0.0146,69704.0,69700.0,0.014354]
[1771074599697,0.0146,69704.0,69699.0,0.014355]
[1771074600398,0.0146,69704.0,69700.0,0.014355]
[1771074600900,0.0146,69704.0,69699.0,0.014355]
[1771074601206,0.028954,69704.0,69699.0,0.014355]
[1771074601592,0.0146,69704.0,69699.0,0.02871]
[1771074601802,0.0146,69704.0,69700.0,0.014355]
[1771074601997,0.0146,69708.0,69704.0,0.014354]
[1771074602196,0.0146,69711.0,69709.0,0.014353]
[1771074602400,0.014354,69703.0,69699.0,0.0146]
[1771074602598,0.014354,69703.0,69700.0,0.0146]
[1771074602802,0.014354,69702.0,69699.0,0.0146]
[1771074603098,0.014355,69701.0,69694.0,0.014356]
[1771074603303,0.014354,69702.0,69695.0,0.0146]
[1771074603505,0.014354,69702.0,69696.0,0.014355]
[1771074603802,0.0146,69704.0,69697.0,0.014355]
[1771074604004,0.05766,69704.0,69698.0,0.014355]
[1771074604406,0.0146,69704.0,69701.0,0.014354]
[1771074604596,0.0146,69704.0,69699.0,0.014355]
[1771074604999,0.0146,69704.0,69700.0,0.014355]
[1771074605306,0.0146,69708.0,69705.0,0.014354]
[1771074605501,0.0146,69708.0,69704.0,0.014354]
[1771074605802,0.157952,69713.0,69706.0,0.014353]
[1771074605998,0.072012,69712.0,69707.0,0.014353]
[1771074606199,0.072012,69712.0,69706.0,0.014353]
[1771074606396,0.057412,69711.0,69698.0,0.014355]
[1771074606702,0.057412,69711.0,69682.0,0.014358]
[1771074606703,0.30075483,69693.0,69682.0,0.014358]
[1771074606900,0.28639883,69687.0,69667.0,0.29894528]
[1771074607106,0.014357,69690.0,69667.0,0.29894528]
[1771074607107,0.014359,69680.0,69668.0,0.028961]
[1771074607301,0.014359,69680.0,69667.0,0.014361]
[1771074607302,0.01436,69674.0,69667.0,0.014361]
[1771074607506,0.01436,69675.0,69668.0,0.028961]
[1771074607909,0.01436,69675.0,69668.0,0.043322]
[1771074608206,0.028959,69680.0,69674.0,0.01436]
[1771074608601,0.0146,69682.0,69679.0,0.014359]
[1771074608906,0.0146,69682.0,69676.0,0.014359]
[1771074608907,0.02743257,69682.0,69676.0,0.014359]
[1771074609307,0.04179057,69682.0,69676.0,0.014359]
[1771074609707,0.014358,69682.0,69676.0,0.014359]
[1771074609908,0.014359,69681.0,69675.0,0.01436]
[1771074610809,0.014357,69689.0,69675.0,0.29894528]
[1771074611012,0.014358,69686.0,69680.0,0.014359]
[1771074611214,0.014357,69687.0,69681.0,0.014358]
[1771074611408,0.057412,69685.0,69683.0,0.014358]
[1771074611910,0.0146,69688.0,69679.0,0.0146]
[1771074612112,0.1436,69693.0,69688.0,0.014357]
[1771074612813,0.014356,69693.0,69687.0,0.014357]
[1771074613113,0.014357,69690.0,69684.0,0.0146]
[1771074613309,0.072012,69693.0,69684.0,0.0146]
[1771074613517,0.0146,69693.0,69688.0,0.014357]
[1771074614009,0.014357,69690.0,69683.0,0.014358]
[1771074614215,0.014357,69689.0,69684.0,0.0146]
[1771074614411,0.014358,69685.0,69676.0,0.01436]
[1771074614714,0.014357,69687.0,69674.0,0.01436]
[1771074614916,0.014359,69680.0,69675.0,0.0146]
[1771074615110,0.28639883,69720.0,69684.0,0.29894528]
[1771074615307,0.2034,69738.0,69683.0,0.71792]
[1771074615308,0.28639883,69717.0,69694.0,0.028712]
[1771074615514,0.014352,69714.0,69706.0,0.014353]
[1771074615719,0.014352,69714.0,69705.0,0.014354]
[1771074616015,0.014352,69714.0,69705.0,0.014353]
[1771074616316,0.014352,69714.0,69703.0,0.014354]
[1771074616317,0.1436,69715.0,69708.0,0.014353]
[1771074616706,0.1436,69715.0,69704.0,0.014354]
[1771074616907,0.1436,69715.0,69706.0,0.014353]
[1771074617111,0.1436,69715.0,69709.0,0.014353]
[1771074617311,0.014352,69714.0,69704.0,0.014354]
[1771074617711,0.1436,69715.0,69708.0,0.014353]
[1771074618113,0.1436,69715.0,69709.0,0.014353]
[1771074618809,0.0146,69716.0,69707.0,0.014353]
[1771074619014,0.0146,69716.0,69710.0,0.014352]
[1771074619611,0.0146,69716.0,69703.0,0.028954]
[1771074619612,0.014352,69712.0,69703.0,0.028954]
[1771074619815,0.014353,69710.0,69703.0,0.0146]
[1771074620119,0.014353,69710.0,69704.0,0.0146]
[1771074620415,0.014353,69710.0,69694.0,0.44254528]
[1771074620416,0.014356,69695.0,69689.0,0.1436]
[1771074620617,0.1582,69709.0,69689.0,0.1436]
[1771074620618,0.014355,69696.0,69689.0,0.0146]
[1771074620926,0.31535383,69698.0,69689.0,0.028957]
[1771074621116,0.028955,69698.0,69690.0,0.014357]
[1771074621416,0.1436,69702.0,69689.0,0.0146]
[1771074621610,0.0146,69701.0,69696.0,0.014355]
[1771074621811,0.1436,69712.0,69701.0,0.014354]
[1771074622013,0.0146,69711.0,69701.0,0.014354]
[1771074622210,0.014353,69710.0,69701.0,0.014354]
[1771074622417,0.014354,69705.0,69695.0,0.028955]
[1771074622720,0.0146,69704.0,69696.0,0.014355]
[1771074622922,0.014354,69704.0,69696.0,0.014355]
[1771074623124,0.014354,69703.0,69695.0,0.028956]
[1771074623421,0.014354,69704.0,69696.0,0.014355]
[1771074623816,0.014354,69705.0,69697.0,0.014355]
[1771074624011,0.028953,69706.0,69696.0,0.014355]
[1771074624421,0.014354,69704.0,69696.0,0.014355]
[1771074624619,0.014354,69703.0,69696.0,0.014355]
[1771074624917,0.014354,69705.0,69697.0,0.014355]
[1771074625110,0.014354,69705.0,69698.0,0.014355]
[1771074625315,0.0146,69706.0,69701.0,0.014354]
[1771074625516,0.0146,69708.0,69704.0,0.014354]
[1771074626013,0.0146,69709.0,69704.0,0.014354]
[1771074626211,0.0146,69709.0,69707.0,0.014353]
[1771074626710,0.13456273,69712.0,69706.0,0.014353]
[1771074626917,0.13456273,69712.0,69709.0,0.014353]
[1771074626918,0.0146,69711.0,69709.0,0.014353]
[1771074627116,0.12044573,69712.0,69708.0,0.014353]
[1771074627316,0.12044573,69712.0,69709.0,0.014353]
[1771074627511,0.12044573,69712.0,69703.0,0.0146]
[1771074627512,0.12044573,69712.0,69704.0,0.014354]
[1771074627716,0.12044573,69712.0,69706.0,0.014353]
[1771074627921,0.12044573,69712.0,69707.0,0.014353]
[1771074628421,0.12044573,69712.0,69707.0,0.028706]
[1771074628624,0.12044573,69712.0,69703.0,0.0146]
[1771074628821,0.12044573,69712.0,69705.0,0.014353]
[1771074629024,0.10965004,69712.0,69705.0,0.014353]
[1771074629222,0.12400204,69712.0,69704.0,0.014354]
[1771074629621,0.10965004,69712.0,69704.0,0.028708]
[1771074629821,0.10965004,69712.0,69705.0,0.014353]
[1771074630223,0.10965004,69712.0,69706.0,0.014353]
[1771074630529,0.28639883,69688.0,69667.0,0.29894528]
[1771074630820,0.014357,69687.0,69670.0,0.014361]
[1771074631027,0.014357,69687.0,69675.0,0.01436]
[1771074631321,0.014358,69683.0,69676.0,0.0146]
[1771074631530,0.014359,69681.0,69676.0,0.028959]
[1771074631723,0.028958,69684.0,69679.0,0.014359]
[1771074631923,0.028958,69684.0,69680.0,0.014359]
[1771074632225,0.028958,69684.0,69679.0,0.014359]
[1771074632428,0.028958,69684.0,69677.0,0.014359]
[1771074632628,0.0146,69684.0,69680.0,0.014359]
[1771074634027,0.0146,69686.0,69684.0,0.014358]
[1771074634729,0.0146,69686.0,69682.0,0.014358]
[1771074635327,0.0146,69686.0,69685.0,0.014358]
[1771074635526,0.014356,69692.0,69685.0,0.014358]
[1771074635527,0.014357,69691.0,69685.0,0.014358]
[1771074635726,0.028714,69691.0,69685.0,0.014358]
[1771074636033,0.028714,69691.0,69686.0,0.014357]
[1771074636228,0.0146,69692.0,69691.0,0.014356]
[1771074636533,0.0146,69692.0,69690.0,0.014357]
[1771074636828,0.0146,69692.0,69689.0,0.014357]
[1771074637233,0.0146,69692.0,69690.0,0.014357]
[1771074638135,0.0146,69692.0,69689.0,0.014357]
[1771074638432,0.0146,69692.0,69688.0,0.014357]
[1771074638628,0.014357,69689.0,69684.0,0.0146]
[1771074638834,0.014357,69688.0,69684.0,0.0146]
[1771074639029,0.0146,69689.0,69682.0,0.0146]
[1771074639232,0.014354,69705.0,69684.0,0.30087592]
[1771074639434,0.014354,69703.0,69694.0,0.014356]
[1771074639638,0.014354,69704.0,69696.0,0.014355]
[1771074639935,0.028954,69705.0,69698.0,0.014355]
[1771074640337,0.028954,69705.0,69697.0,0.014355]
[1771074641532,0.014354,69704.0,69697.0,0.014355]
[1771074641732,0.27676221,69703.0,69665.0,0.27602157]
[1771074641932,0.014361,69669.0,69657.0,0.014363]
[1771074642138,0.717802,69696.0,69642.0,0.7185039]
[1771074642139,0.3161,69692.0,69674.0,0.01436]
[1771074642332,0.014358,69682.0,69675.0,0.02896]
[1771074642638,0.014359,69681.0,69675.0,0.02896]
[1771074642836,0.014358,69684.0,69676.0,0.014359]
[1771074643038,0.014358,69682.0,69675.0,0.02896]
[1771074644236,0.014358,69682.0,69676.0,0.01436]
[1771074644634,0.014358,69682.0,69675.0,0.02896]
[1771074644839,0.014358,69682.0,69675.0,0.01436]
[1771074645835,0.014356,69694.0,69687.0,0.014357]
[1771074646030,0.1436,69696.0,69692.0,0.014356]
[1771074646234,0.0146,69695.0,69688.0,0.014357]
[1771074646438,0.0146,69695.0,69693.0,0.014356]
[1771074647238,0.0146,69695.0,69692.0,0.014356]
[1771074647431,0.014358,69683.0,69673.0,0.01436]
[1771074647631,0.30571921,69687.0,69680.0,0.014359]
[1771074647835,0.30571921,69687.0,69674.0,0.0146]
[1771074647836,0.27676221,69683.0,69674.0,0.02896]
[1771074648037,0.028958,69682.0,69675.0,0.01436]
[1771074648238,0.014359,69681.0,69675.0,0.01436]
[1771074648940,0.014359,69681.0,69674.0,0.04332]
[1771074649238,0.014359,69681.0,69675.0,0.01436]
[1771074649435,0.014356,69693.0,69677.0,0.014359]
[1771074649634,0.014357,69688.0,69677.0,0.014359]
[1771074649830,0.014358,69683.0,69676.0,0.014359]
[1771074650034,0.014358,69683.0,69674.0,0.02896]
[1771074650035,0.014358,69682.0,69674.0,0.02896]
[1771074650337,0.014359,69681.0,69674.0,0.02896]
[1771074650541,0.014359,69681.0,69675.0,0.01436]
[1771074651041,0.014359,69681.0,69674.0,0.0146]
[1771074652234,0.014359,69681.0,69674.0,0.01436]
[1771074652542,0.014362,69667.0,69660.0,0.014363]
[1771074652743,0.014362,69667.0,69657.0,0.014363]
[1771074653037,0.028722,69669.0,69662.0,0.014362]
[1771074653244,0.014361,69668.0,69659.0,0.014363]
[1771074653434,0.0146,69671.0,69665.0,0.014362]
[1771074653638,0.028961,69671.0,69666.0,0.014361]
[1771074654347,0.0146,69675.0,69669.0,0.014361]
[1771074654547,0.01436,69673.0,69667.0,0.014361]
[1771074654841,0.27676221,69668.0,69639.0,0.27602157]
[1771074655042,0.014363,69659.0,69651.0,0.014365]
[1771074655346,0.028726,69659.0,69653.0,0.014364]
[1771074655542,0.014363,69658.0,69653.0,0.014364]
[1771074655840,0.014363,69659.0,69653.0,0.0146]
[1771074656047,0.014363,69661.0,69654.0,0.014364]
[1771074656048,0.014363,69660.0,69654.0,0.014364]
[1771074656342,0.014363,69660.0,69655.0,0.014364]
[1771074656542,0.014363,69659.0,69654.0,0.014364]
[1771074656746,0.014363,69660.0,69655.0,0.014364]
[1771074657244,0.014363,69661.0,69654.0,0.014364]
[1771074657454,0.014363,69658.0,69653.0,0.028964]
[1771074657640,0.0146,69662.0,69639.0,0.27602157]
[1771074657641,0.27676221,69661.0,69639.0,0.27602157]
[1771074657849,0.27676221,69661.0,69599.0,0.89645086]
[1771074657850,0.014365,69652.0,69646.0,0.014366]
[1771074658042,0.0146,69654.0,69645.0,0.014366]
[1771074658351,0.014365,69651.0,69646.0,0.014366]
[1771074658536,0.014365,69651.0,69643.0,0.0146]
[1771074658741,0.014365,69651.0,69646.0,0.014366]
[1771074659035,0.00014472,69650.0,69644.0,0.0146]
[1771074659242,0.00014472,69650.0,69644.0,0.028966]
[1771074659644,0.014364,69653.0,69648.0,0.014365]
[1771074660346,0.028964,69654.0,69649.0,0.014365]
[1771074660848,0.014364,69653.0,69649.0,0.014365]
[1771074661242,0.014364,69653.0,69648.0,0.014365]
[1771074661941,0.028964,69654.0,69648.0,0.014365]
[1771074662143,0.014364,69653.0,69646.0,0.014366]
[1771074662342,0.014364,69653.0,69647.0,0.014365]
[1771074662540,0.014364,69653.0,69646.0,0.014366]
[1771074662942,0.0146,69654.0,69638.0,0.42842594]
[1771074662943,0.014365,69648.0,69642.0,0.0146]
[1771074663146,0.014365,69649.0,69644.0,0.014366]
[1771074663353,0.028965,69650.0,69642.0,0.0146]
[1771074663751,0.028965,69650.0,69646.0,0.014366]
[1771074663752,0.0146,69650.0,69646.0,0.014366]
[1771074663952,0.0146,69650.0,69643.0,0.014366]
[1771074664154,0.0146,69650.0,69648.0,0.014365]
[1771074664355,0.0146,69650.0,69646.0,0.014366]
[1771074664556,0.0146,69650.0,69644.0,0.014366]
[1771074664751,0.028965,69650.0,69643.0,0.014366]
[1771074664959,0.0146,69650.0,69646.0,0.014366]
[1771074665159,0.028965,69650.0,69642.0,0.0146]
[1771074665455,0.028965,69650.0,69644.0,0.014366]
[1771074665656,0.014365,69649.0,69644.0,0.014366]
[1771074665849,0.0146,69649.0,69647.0,0.014365]
[1771074666054,0.028965,69651.0,69646.0,0.014366]
[1771074666456,0.0146,69651.0,69647.0,0.014365]
[1771074666651,0.028965,69651.0,69645.0,0.014366]
[1771074666952,0.028965,69651.0,69646.0,0.014366]
[1771074667459,0.014365,69650.0,69645.0,0.014366]
[1771074668162,0.014365,69650.0,69646.0,0.014366]
[1771074668356,0.0146,69651.0,69647.0,0.014365]
[1771074668556,0.0146,69651.0,69648.0,0.014365]
[1771074669351,0.0146,69651.0,69650.0,0.014365]
[1771074670954,0.0146,69653.0,69650.0,0.014365]
[1771074672160,0.028964,69653.0,69649.0,0.014365]
[1771074672658,0.0146,69653.0,69650.0,0.014365]
[1771074673061,0.0146,69653.0,69649.0,0.014365]
[1771074674357,0.028964,69653.0,69648.0,0.014365]
[1771074674858,0.014364,69655.0,69649.0,0.014365]
[1771074675157,0.028964,69655.0,69649.0,0.014365]
[1771074675464,0.0146,69656.0,69655.0,0.014364]
[1771074675663,0.0146,69658.0,69655.0,0.014364]
[1771074675966,0.014362,69663.0,69655.0,0.014364]
[1771074675967,0.0146,69664.0,69655.0,0.28478294]
[1771074676257,0.014361,69668.0,69663.0,0.014362]
[1771074676463,0.14368,69672.0,69659.0,0.014363]
[1771074676657,0.0146,69671.0,69666.0,0.014362]
[1771074676852,0.14368,69672.0,69667.0,0.014361]
[1771074677058,0.028961,69671.0,69666.0,0.014361]
[1771074677258,0.0146,69671.0,69666.0,0.014361]
[1771074677462,0.014361,69670.0,69666.0,0.014361]
[1771074677663,0.028961,69671.0,69666.0,0.014361]
[1771074678062,0.014361,69670.0,69666.0,0.014361]
[1771074678463,0.0146,69671.0,69666.0,0.014361]
[1771074678861,0.028961,69671.0,69667.0,0.014361]
[1771074679167,0.028961,69671.0,69666.0,0.014362]
[1771074679361,0.014361,69670.0,69665.0,0.014362]
[1771074679561,0.014361,69668.0,69663.0,0.014362]
[1771074680266,0.014361,69667.0,69663.0,0.014362]
[1771074680466,0.014361,69670.0,69663.0,0.014362]
[1771074680766,0.014361,69670.0,69665.0,0.028724]
[1771074680966,0.028722,69670.0,69665.0,0.014362]
[1771074681165,0.014361,69670.0,69665.0,0.014362]
[1771074681463,0.0146,69671.0,69663.0,0.014362]
[1771074681669,0.014361,69668.0,69661.0,0.014363]
[1771074681864,0.014362,69667.0,69662.0,0.014362]
[1771074682764,0.28068658,69668.0,69659.0,0.0146]
[1771074682966,0.014363,69661.0,69659.0,0.0146]
[1771074683163,0.014363,69660.0,69655.0,0.014364]
[1771074683365,0.014363,69661.0,69656.0,0.0146]
[1771074683567,0.014363,69660.0,69656.0,0.0146]
[1771074685066,0.014363,69660.0,69656.0,0.028964]
[1771074685268,0.014363,69660.0,69655.0,0.014364]
[1771074685469,0.014363,69660.0,69653.0,0.0146]
[1771074685664,0.014362,69663.0,69656.0,0.014363]
[1771074685665,0.014363,69661.0,69656.0,0.014363]
[1771074685864,0.014363,69661.0,69648.0,0.41405894]
[1771074685865,0.28044958,69662.0,69645.0,0.014366]
[1771074686066,0.014364,69657.0,69650.0,0.014365]
[1771074686266,0.014364,69656.0,69650.0,0.014365]
[1771074686667,0.014363,69660.0,69653.0,0.014364]
[1771074686872,0.014363,69657.0,69651.0,0.028965]
[1771074687369,0.014364,69656.0,69651.0,0.028965]
[1771074688069,0.014365,69652.0,69646.0,0.014366]
[1771074688269,0.014365,69651.0,69644.0,0.028966]
[1771074688468,0.014364,69653.0,69647.0,0.014365]
[1771074688673,0.014365,69652.0,69646.0,0.014366]
[1771074688964,0.014364,69654.0,69649.0,0.014365]
[1771074689165,0.014363,69658.0,69653.0,0.014364]
[1771074689372,0.028963,69657.0,69651.0,0.014364]
[1771074689564,0.014364,69656.0,69651.0,0.014364]
[1771074689871,0.014364,69656.0,69649.0,0.014365]
[1771074690072,0.014364,69656.0,69650.0,0.014365]
[1771074690773,0.014364,69655.0,69650.0,0.014365]
[1771074690968,0.014365,69651.0,69647.0,0.0146]
[1771074691169,0.014365,69650.0,69647.0,0.0146]
[1771074691976,0.014364,69655.0,69650.0,0.014365]
[1771074693065,0.0146,69657.0,69635.0,0.0146]
[1771074693270,0.028964,69657.0,69639.0,0.24350576]
[1771074693473,0.028964,69657.0,69640.0,0.24350576]
[1771074693474,0.014365,69652.0,69640.0,0.24350576]
[1771074693673,0.014365,69649.0,69638.0,0.01456]
[1771074693969,0.014365,69651.0,69646.0,0.014366]
[1771074694171,0.014365,69651.0,69646.0,0.028926]
[1771074694879,0.01456,69654.0,69649.0,0.014365]
[1771074695175,0.01456,69654.0,69650.0,0.014365]
[1771074695676,0.028924,69654.0,69650.0,0.014365]
[1771074696580,0.01456,69654.0,69651.0,0.014365]
[1771074696780,0.01456,69654.0,69650.0,0.014365]
[1771074696979,0.01456,69654.0,69648.0,0.014365]
[1771074696980,0.014362,69667.0,69648.0,0.24350576]
[1771074697180,0.014362,69663.0,69657.0,0.014363]
[1771074697376,0.014362,69663.0,69656.0,0.01456]
[1771074697776,0.014362,69664.0,69659.0,0.014363]
[1771074698080,0.014362,69663.0,69658.0,0.014363]
[1771074698682,0.014363,69658.0,69649.0,0.014365]
[1771074698877,0.014363,69658.0,69653.0,0.014364]
[1771074699070,0.014363,69658.0,69654.0,0.01456]
[1771074699676,0.01413939,69658.0,69654.0,0.01456]
[1771074699986,0.014363,69660.0,69654.0,0.01456]
[1771074700675,0.014363,69661.0,69654.0,0.01456]
[1771074701082,0.014363,69660.0,69655.0,0.014364]
[1771074701877,0.014363,69660.0,69654.0,0.028924]
[1771074702085,0.014363,69662.0,69656.0,0.014364]
[1771074702478,0.028922,69663.0,69657.0,0.014363]
[1771074702777,0.014362,69662.0,69658.0,0.014363]
[1771074703884,0.028922,69663.0,69658.0,0.014363]
[1771074704582,0.014362,69662.0,69658.0,0.014363]
[1771074705175,0.01436,69675.0,69665.0,0.014362]
[1771074705380,0.01436,69672.0,69662.0,0.014362]
[1771074705582,0.014361,69668.0,69664.0,0.014362]
[1771074705887,0.014361,69671.0,69667.0,0.014361]
[1771074706184,0.014361,69671.0,69665.0,0.014362]
[1771074706185,0.014361,69671.0,69665.0,0.028724]
[1771074706484,0.014361,69670.0,69665.0,0.014362]
[1771074707177,0.02892,69672.0,69668.0,0.014361]
[1771074707387,0.01456,69672.0,69663.0,0.014362]
[1771074707583,0.014361,69668.0,69664.0,0.014362]
[1771074707783,0.014361,69668.0,69664.0,0.01456]
[1771074708585,0.014361,69668.0,69664.0,0.028922]
[1771074709089,0.014361,69669.0,69664.0,0.028922]
[1771074709590,0.014361,69670.0,69664.0,0.028922]
[1771074709790,0.014361,69671.0,69666.0,0.014362]
[1771074710583,0.01456,69672.0,69666.0,0.014362]
[1771074710584,0.02892,69672.0,69667.0,0.014361]
[1771074710789,0.014361,69669.0,69664.0,0.014362]
[1771074711291,0.014361,69669.0,69665.0,0.014362]
[1771074711891,0.014361,69670.0,69665.0,0.028922]
[1771074715084,0.014361,69670.0,69666.0,0.014362]
[1771074720288,0.01456,69672.0,69666.0,0.014362]
[1771074720493,0.01456,69672.0,69668.0,0.014361]
[1771074720888,0.014361,69671.0,69667.0,0.014361]
[1771074721090,0.014361,69671.0,69666.0,0.014362]
[1771074721294,0.014361,69670.0,69666.0,0.014362]
[1771074721596,0.014361,69671.0,69666.0,0.014362]
[1771074721793,0.15824,69674.0,69665.0,0.01456]
[1771074722093,0.01436,69672.0,69668.0,0.014361]
[1771074723301,0.01436,69673.0,69669.0,0.014361]
[1771074723495,0.01436,69672.0,69668.0,0.014361]
[1771074724092,0.01436,69672.0,69667.0,0.014361]
[1771074724988,0.01436,69672.0,69668.0,0.014361]
[1771074729097,0.014358,69686.0,69679.0,0.014359]
[1771074729296,0.014358,69683.0,69678.0,0.014359]
[1771074729596,0.02038073,69686.0,69681.0,0.014358]
[1771074730101,0.014358,69685.0,69681.0,0.014358]
[1771074730597,0.00602273,69686.0,69681.0,0.014358]
[1771074731298,0.00602273,69686.0,69682.0,0.014358]
[1771074732092,0.00602273,69686.0,69681.0,0.014358]
[1771074732297,0.00602273,69686.0,69680.0,0.014359]
[1771074732507,0.02414403,69687.0,69682.0,0.014358]
[1771074732702,0.014358,69686.0,69677.0,0.01456]
[1771074732903,0.01456,69687.0,69679.0,0.014359]
[1771074733098,0.01456,69687.0,69683.0,0.014358]
[1771074733303,0.01456,69689.0,69685.0,0.014358]
[1771074735104,0.01456,69689.0,69685.0,0.028716]
[1771074735304,0.014357,69690.0,69685.0,0.028716]
[1771074735604,0.014357,69690.0,69685.0,0.014358]
[1771074735804,0.01456,69691.0,69686.0,0.014357]
[1771074736005,0.014357,69690.0,69683.0,0.01456]
[1771074736205,0.01456,69691.0,69684.0,0.014358]
[1771074736404,0.028917,69691.0,69686.0,0.014357]
[1771074736603,0.01456,69691.0,69686.0,0.014357]
[1771074737400,0.01456,69691.0,69685.0,0.014357]
[1771074737401,0.028917,69691.0,69685.0,0.014357]
[1771074737704,0.028917,69691.0,69684.0,0.014358]
[1771074737705,0.028917,69691.0,69686.0,0.014357]
[1771074738307,0.086521,69692.0,69688.0,0.014357]
[1771074738506,0.086521,69692.0,69688.0,0.028714]
[1771074739007,0.086521,69692.0,69688.0,0.014357]
[1771074739506,0.086521,69692.0,69689.0,0.014357]
[1771074740204,0.086521,69692.0,69688.0,0.014357]
[1771074740405,0.100877,69692.0,69687.0,0.014357]
[1771074740605,0.086521,69692.0,69687.0,0.014357]
[1771074740795,0.100877,69692.0,69687.0,0.014357]